bitfinex-derivatives/quotes_ETHF0:USTF0_20250830
["timestamp","ask_amount","ask_price","bid_price","bid_amount"]
[1756559955855,0.4713,4350.7,4350.1,0.3062]
[1756559956053,0.4713,4350.0,4349.9,3.2078]
[1756559957251,0.4713,4349.5,4349.4,3.514]
[1756559957556,0.4713,4349.5,4349.4,3.4488]
[1756559957958,0.4713,4349.5,4349.4,3.2078]
[1756559958553,0.2819,4350.4,4349.4,3.7157]
[1756559958753,3.2078,4350.5,4349.4,3.7157]
[1756559958754,0.2819,4350.2,4349.4,3.7157]
[1756559959353,3.2078,4350.5,4349.4,3.7157]
[1756559959554,0.4713,4349.5,4349.4,3.2078]
[1756559960660,0.1894,4349.5,4349.4,3.7157]
[1756559961357,0.4713,4349.5,4349.4,3.7157]
[1756559961759,0.4713,4349.5,4349.4,3.2078]
[1756559962755,0.1894,4349.5,4348.8,3.2078]
[1756559962954,0.1894,4348.9,4348.8,3.4488]
[1756559963261,0.4713,4348.9,4348.8,3.4488]
[1756559963462,0.4713,4348.9,4348.8,3.6505]
[1756559963863,0.4713,4348.9,4348.8,3.9567]
[1756559964562,0.4713,4348.9,4348.8,3.6505]
[1756559964965,0.4713,4348.9,4348.8,3.4095]
[1756559966164,0.4713,4348.9,4348.8,3.7157]
[1756559967567,3.2078,4349.7,4348.8,3.9567]
[1756559967763,0.4713,4349.6,4349.5,0.2017]
[1756559968264,0.4713,4349.6,4349.5,0.5079]
[1756559970168,3.2078,4349.7,4349.6,0.5079]
[1756559971270,0.2819,4351.1,4351.0,0.2017]
[1756559971463,0.4713,4351.1,4351.0,0.2017]
[1756559971767,0.4713,4351.1,4351.0,0.5079]
[1756559972670,0.1894,4351.1,4351.0,0.5079]
[1756559973169,0.2819,4351.6,4350.6,0.3062]
[1756559973764,0.4713,4351.6,4351.5,0.5079]
[1756559974560,0.1894,4351.6,4350.6,0.3062]
[1756559974765,0.2819,4351.1,4350.5,3.657]
[1756559974961,0.4713,4351.1,4351.0,0.2017]
[1756559975169,0.4713,4351.1,4351.0,0.5079]
[1756559976571,0.4713,4351.6,4351.5,0.5079]
[1756559977573,3.2078,4351.8,4351.6,0.1901]
[1756559977775,0.4833,4352.2,4352.1,0.1901]
[1756559977962,0.4833,4352.2,4352.1,0.4742]
[1756559978166,0.4833,4352.2,4352.1,0.1901]
[1756559978768,0.2954,4352.1,4351.2,0.2841]
[1756559978968,0.4833,4352.1,4352.0,0.4742]
[1756559979166,0.1879,4352.1,4352.0,0.4742]
[1756559979875,3.2078,4352.3,4352.2,0.1901]
[1756559980176,3.6911,4352.3,4352.2,0.4742]
[1756559980364,0.2954,4352.2,4351.5,3.4488]
[1756559980567,0.2954,4352.1,4351.5,3.923]
[1756559980770,0.2954,4352.1,4352.0,0.4742]
[1756559980968,0.2954,4352.3,4352.1,0.2841]
[1756559981169,0.4833,4352.3,4352.2,0.4742]
[1756559982370,0.2954,4352.3,4352.2,0.4742]
[1756559982570,0.4833,4352.3,4352.2,0.4742]
[1756559983263,3.2078,4352.5,4352.2,0.4742]
[1756559983464,0.2954,4352.8,4352.7,0.1901]
[1756559983673,0.2954,4352.8,4352.7,0.4742]
[1756559983874,0.4833,4352.8,4352.7,0.4742]
[1756559985365,3.2078,4353.0,4352.9,0.1901]
[1756559985366,3.5032,4353.0,4352.9,0.1901]
[1756559985568,3.2078,4353.0,4352.9,0.4742]
[1756559985968,3.6911,4353.0,4352.9,0.4742]
[1756559986164,3.6911,4353.0,4352.9,0.1901]
[1756559986364,0.2954,4352.9,4352.3,0.2841]
[1756559986774,0.4833,4352.9,4352.8,0.1901]
[1756559987369,0.1879,4352.1,4352.0,3.2078]
[1756559987570,0.1879,4352.1,4352.0,0.4742]
[1756559987766,0.4833,4352.1,4352.0,0.1901]
[1756559988177,0.1879,4352.1,4351.4,0.241]
[1756559988378,3.2078,4352.3,4351.4,0.241]
[1756559988379,0.2954,4352.0,4351.5,0.2841]
[1756559988578,0.2954,4352.2,4351.5,0.2841]
[1756559988871,3.2078,4352.3,4352.1,0.1901]
[1756559989072,0.2954,4352.2,4352.1,0.4742]
[1756559989265,0.1879,4352.2,4352.1,0.4742]
[1756559989469,0.4833,4352.2,4352.1,0.4742]
[1756559989871,0.2954,4352.7,4351.9,0.2841]
[1756559990071,0.4833,4352.0,4351.9,0.4742]
[1756559990876,0.4833,4352.0,4351.9,0.2841]
[1756559991078,3.2078,4352.8,4351.8,3.2078]
[1756559991079,0.4833,4351.9,4351.8,3.2078]
[1756559991278,0.4833,4351.9,4351.8,3.3979]
[1756559991479,0.4833,4351.9,4351.8,3.682]
[1756559991682,0.2954,4352.7,4351.9,0.2841]
[1756559991874,0.4833,4352.7,4352.6,0.1901]
[1756559992376,0.1879,4352.5,4352.4,0.4742]
[1756559992577,3.2078,4352.8,4352.4,0.1901]
[1756559992773,0.4833,4352.7,4352.6,0.1901]
[1756559992977,0.4833,4352.7,4352.6,0.4742]
[1756559993473,0.1879,4352.7,4352.6,0.4742]
[1756559993875,0.4833,4352.7,4352.6,0.4742]
[1756559994584,3.6911,4352.7,4351.9,0.2841]
[1756559995878,3.6911,4352.7,4351.9,0.5251]
[1756559995879,0.2954,4352.6,4351.9,0.5251]
[1756559996085,0.4833,4352.0,4351.9,0.7152]
[1756559996388,0.4833,4352.0,4351.9,0.4742]
[1756559997587,0.2954,4352.6,4351.9,0.4742]
[1756559997775,0.2954,4352.6,4352.0,0.2841]
[1756559998179,3.2078,4352.7,4352.6,0.2841]
[1756559998375,3.6911,4352.7,4352.6,0.4742]
[1756559998781,0.4833,4352.7,4352.6,0.4742]
[1756560000288,0.1879,4351.9,4351.3,3.4919]
[1756560000481,0.4833,4351.4,4351.3,3.3979]
[1756560000885,0.4833,4351.4,4351.3,3.6389]
[1756560001085,3.2078,4352.7,4351.3,3.6389]
[1756560001282,0.2954,4352.5,4351.4,0.2841]
[1756560001482,0.2954,4352.5,4351.5,0.2841]
[1756560002095,0.4833,4352.5,4352.4,0.4742]
[1756560002388,1.05005997,4352.5,4352.4,0.4742]
[1756560002582,0.1879,4352.5,4352.4,0.4742]
[1756560002783,3.2078,4352.7,4352.4,0.1901]
[1756560002983,3.2078,4352.7,4352.6,0.1901]
[1756560003390,3.2078,4352.7,4352.6,0.4742]
[1756560003690,3.3957,4352.7,4352.6,0.4742]
[1756560003881,3.6911,4352.7,4352.6,0.4742]
[1756560004484,3.3957,4352.7,4352.6,0.4742]
[1756560005485,3.2078,4352.7,4352.6,0.4742]
[1756560006290,0.1879,4352.8,4352.7,0.4742]
[1756560006492,0.4833,4352.8,4352.7,0.4742]
[1756560006694,0.4833,4352.8,4352.7,0.4311]
[1756560006891,0.4833,4352.8,4352.7,0.7152]
[1756560007298,0.4833,4352.8,4352.7,0.4742]
[1756560007497,0.4833,4352.8,4352.7,0.241]
[1756560007793,0.1879,4352.8,4352.5,3.2078]
[1756560007989,3.2078,4353.4,4352.5,3.2078]
[1756560007990,0.1983,4352.6,4352.5,3.2078]
[1756560008186,0.4873,4352.6,4352.5,3.6369]
[1756560008392,0.4873,4352.6,4352.5,3.7057]
[1756560008592,0.4873,4352.6,4352.5,3.9467]
[1756560009295,0.4873,4352.6,4352.5,3.2078]
[1756560009493,0.4873,4352.6,4352.5,0.7389]
[1756560010587,0.4873,4352.6,4352.5,0.241]
[1756560010987,0.4873,4352.5,4352.4,0.1881]
[1756560011191,0.4873,4352.5,4352.4,0.4281]
[1756560014000,0.4873,4352.5,4352.1,0.24]
[1756560014001,0.289,4352.4,4352.1,0.24]
[1756560014194,0.1983,4352.2,4352.1,0.24]
[1756560014503,0.4873,4352.2,4352.1,0.24]
[1756560014797,0.1983,4352.2,4352.1,0.7379]
[1756560014992,0.289,4352.1,4351.7,36.6186]
[1756560015193,0.4873,4351.8,4351.7,36.6186]
[1756560015398,0.4873,4351.8,4351.7,36.8586]
[1756560015792,0.1983,4351.8,4351.7,36.6186]
[1756560015995,0.1983,4351.8,4351.7,36.8586]
[1756560016392,0.4873,4352.1,4352.0,0.1881]
[1756560016597,0.4873,4352.1,4352.0,0.4979]
[1756560017801,0.289,4353.0,4352.0,0.1881]
[1756560018002,0.79955211,4352.9,4352.1,0.24]
[1756560018203,0.4873,4352.3,4351.7,36.3088]
[1756560018405,0.1983,4351.9,4351.8,0.4979]
[1756560018601,0.4873,4351.9,4351.8,0.7379]
[1756560018802,0.4873,4351.9,4351.8,0.3098]
[1756560019001,0.4873,4351.9,4351.8,0.24]
[1756560019191,0.289,4352.3,4351.8,0.7379]
[1756560019397,0.289,4353.0,4351.9,0.3098]
[1756560019701,0.289,4352.8,4351.9,0.3098]
[1756560019904,0.289,4352.6,4351.9,0.3098]
[1756560020097,0.1983,4352.0,4351.9,0.4979]
[1756560020298,0.4873,4352.0,4351.9,0.4979]
[1756560020806,0.4873,4352.0,4351.9,0.7379]
[1756560021006,0.4873,4352.0,4351.9,0.4281]
[1756560021398,0.4873,4352.0,4351.9,0.7379]
[1756560022503,0.4873,4352.0,4351.9,0.4979]
[1756560022806,0.1983,4352.0,4351.9,0.7379]
[1756560023300,0.1983,4352.6,4352.5,0.1881]
[1756560023495,1.05658293,4352.6,4352.4,0.24]
[1756560023694,1.05658293,4352.5,4352.4,0.24]
[1756560023900,0.76758293,4352.5,4352.4,0.24]
[1756560024102,0.99734294,4352.5,4352.3,0.24]
[1756560024301,0.76758293,4352.4,4352.3,0.24]
[1756560024619,1.05658293,4352.4,4352.3,0.24]
[1756560025507,0.76758293,4352.4,4351.7,3.5176]
[1756560025702,0.4873,4351.4,4351.3,0.4979]
[1756560025903,0.1983,4351.4,4351.3,0.7379]
[1756560026110,0.289,4352.0,4351.4,0.3098]
[1756560026306,3.2078,4352.1,4351.4,0.3098]
[1756560026307,0.1983,4351.5,4351.4,0.4979]
[1756560026703,0.1983,4351.5,4351.4,0.7379]
[1756560026905,0.4873,4351.5,4351.4,0.7379]
[1756560027108,0.1983,4351.5,4351.4,0.7379]
[1756560027409,0.289,4352.0,4351.5,0.3098]
[1756560027810,0.4873,4351.6,4351.5,0.4979]
[1756560029102,0.4873,4351.6,4351.5,0.7379]
[1756560029304,0.1983,4351.6,4351.5,0.7379]
[1756560029812,0.4873,4351.6,4351.5,0.7379]
[1756560030212,0.1983,4351.6,4351.5,0.7379]
[1756560031109,0.4873,4351.6,4351.5,0.7379]
[1756560032213,3.2078,4352.6,4351.5,0.4281]
[1756560032511,0.289,4352.4,4351.6,0.3098]
[1756560032711,0.289,4352.2,4351.6,0.3098]
[1756560032908,0.1983,4351.7,4351.6,0.4979]
[1756560033110,0.4873,4351.7,4351.6,0.4979]
[1756560033510,0.4873,4351.7,4351.6,0.7379]
[1756560034317,0.4873,4351.7,4351.6,0.24]
[1756560034615,0.4873,4351.7,4351.6,0.7379]
[1756560035009,0.4873,4351.7,4351.6,0.24]
[1756560035912,0.4873,4351.7,4351.6,0.7379]
[1756560039416,0.1983,4351.7,4351.6,0.7379]
[1756560039809,0.2977,4351.9,4351.6,0.7379]
[1756560040015,0.2977,4351.9,4351.8,0.1978]
[1756560040314,0.2977,4352.5,4351.9,0.2826]
[1756560040519,3.2078,4352.6,4352.4,0.4804]
[1756560040714,3.2078,4352.6,4352.5,0.2826]
[1756560040918,0.5051,4352.6,4352.5,0.4804]
[1756560041114,0.5051,4352.6,4352.4,0.24]
[1756560041316,0.5051,4352.6,4352.1,0.2826]
[1756560041523,0.2074,4352.6,4352.2,0.5226]
[1756560041723,0.5051,4352.3,4352.2,0.1978]
[1756560041925,0.5051,4352.3,4352.2,0.24]
[1756560042121,0.5051,4352.3,4352.2,0.7204]
[1756560042423,3.2078,4353.0,4352.2,0.4378]
[1756560042623,1.07502764,4352.9,4352.8,0.1978]
[1756560042920,1.07502764,4352.9,4352.8,0.4804]
[1756560044822,0.5051,4352.9,4352.8,0.4804]
[1756560045421,0.2977,4353.5,4352.9,0.2826]
[1756560045620,0.2074,4353.0,4352.9,0.1978]
[1756560045820,0.2074,4353.0,4352.9,0.4804]
[1756560046026,0.5051,4353.0,4352.9,0.4804]
[1756560047130,0.2074,4353.0,4352.9,0.4804]
[1756560048022,3.2078,4353.6,4353.4,0.4804]
[1756560048023,0.5051,4353.5,4353.4,0.4804]
[1756560050330,0.5051,4353.5,4353.4,0.4378]
[1756560051025,0.5051,4353.5,4353.4,0.1978]
[1756560051227,0.5051,4353.5,4353.4,0.4804]
[1756560052429,3.2078,4354.1,4353.4,0.4804]
[1756560052626,3.4152,4354.1,4353.7,0.2826]
[1756560052934,3.4152,4354.1,4353.4,0.2826]
[1756560053134,0.2977,4354.0,4353.4,0.2826]
[1756560053730,0.5051,4354.0,4353.9,0.1978]
[1756560054036,44.382,4367.0,4354.0,0.2826]
[1756560054037,3.7455,4355.3,4354.0,0.2826]
[1756560054328,0.2977,4355.1,4354.0,0.2826]
[1756560054534,3.4478,4355.3,4354.0,0.2826]
[1756560054535,0.56865446,4355.0,4354.0,0.2826]
[1756560054725,0.2977,4354.9,4354.0,0.2826]
[1756560055122,0.5051,4354.9,4354.8,0.4804]
[1756560056125,3.2078,4355.3,4354.8,0.4804]
[1756560056435,0.2977,4355.5,4354.9,0.2826]
[1756560056629,0.5051,4355.5,4355.4,0.4804]
[1756560057624,3.2078,4356.3,4355.2,0.24]
[1756560057625,0.2977,4356.2,4356.1,0.1978]
[1756560057825,3.2078,4356.8,4356.1,0.1978]
[1756560058029,0.5051,4356.7,4356.6,0.1978]
[1756560058231,0.5051,4356.7,4356.6,0.7204]
[1756560058433,0.2074,4356.7,4356.6,0.7204]
[1756560058629,3.2078,4356.8,4356.7,0.2826]
[1756560058831,0.5051,4356.8,4356.7,0.4804]
[1756560059333,0.5051,4356.8,4356.7,0.1978]
[1756560059535,0.5051,4356.8,4356.7,0.4804]
[1756560059833,0.5051,4356.8,4356.2,3.2078]
[1756560059834,3.5055,4357.4,4356.2,3.4056]
[1756560060034,0.5051,4356.9,4356.5,0.2826]
[1756560060330,3.2078,4357.3,4356.2,3.2078]
[1756560060331,0.2074,4356.3,4356.2,3.4056]
[1756560060536,0.5051,4356.3,4356.2,3.4056]
[1756560060729,0.5051,4356.3,4356.2,3.6882]
[1756560060929,0.5051,4356.3,4356.2,3.9282]
[1756560061429,0.2977,4357.2,4356.3,0.2826]
[1756560061830,0.5051,4356.3,4356.0,0.24]
[1756560062142,0.5051,4356.3,4355.9,0.2826]
[1756560062143,0.2074,4356.0,4355.9,0.24]
[1756560062334,0.5051,4356.0,4355.9,0.24]
[1756560062637,0.5051,4355.8,4355.7,3.4056]
[1756560062835,3.2078,4357.0,4355.7,3.6456]
[1756560063028,0.5051,4356.1,4356.0,0.4804]
[1756560063235,0.2977,4356.5,4356.0,0.4804]
[1756560063435,3.2078,4357.0,4356.1,0.2826]
[1756560063436,0.2977,4356.9,4356.1,0.2826]
[1756560063636,0.2074,4356.3,4356.2,0.4378]
[1756560063838,0.5051,4356.3,4356.2,0.7204]
[1756560064438,0.5051,4356.3,4356.2,0.24]
[1756560064636,0.5051,4356.3,4356.2,0.7204]
[1756560064931,0.2074,4356.3,4356.2,0.24]
[1756560065136,0.2074,4356.3,4355.7,3.2078]
[1756560065435,0.2074,4356.3,4355.6,0.24]
[1756560065636,0.2074,4355.7,4355.6,0.4378]
[1756560065832,0.5051,4355.7,4355.6,0.4378]
[1756560066035,0.5051,4355.7,4355.6,0.24]
[1756560066237,0.5051,4355.3,4355.2,3.6882]
[1756560066638,0.5051,4355.3,4355.2,3.4478]
[1756560067034,0.5051,4355.3,4355.2,3.9309]
[1756560067234,0.2917,4355.9,4355.3,0.2853]
[1756560067431,0.4827,4355.4,4355.3,0.4757]
[1756560067632,0.4827,4355.4,4355.2,3.2078]
[1756560067936,0.4827,4355.3,4355.2,3.2078]
[1756560068137,0.4827,4355.3,4355.2,3.4478]
[1756560068733,0.4827,4355.3,4355.2,3.2078]
[1756560068938,0.4827,4355.3,4355.2,0.24]
[1756560069534,0.4827,4355.3,4354.9,0.2853]
[1756560069731,0.191,4354.9,4354.8,33.084]
[1756560069936,0.4827,4354.9,4354.8,33.084]
[1756560070241,0.4827,4354.9,4354.8,33.324]
[1756560070440,0.4827,4354.9,4354.8,33.6093]
[1756560070842,0.2917,4355.9,4354.9,0.2853]
[1756560071240,0.191,4355.0,4354.9,0.4757]
[1756560071546,0.4827,4355.0,4354.9,0.7157]
[1756560071947,0.4827,4355.0,4354.9,0.1904]
[1756560072144,0.4827,4355.0,4354.9,0.24]
[1756560072444,0.4827,4354.3,4354.2,3.6835]
[1756560072748,0.4827,4354.3,4353.9,0.24]
[1756560073238,0.191,4354.3,4353.9,0.24]
[1756560073444,0.191,4354.0,4353.9,0.24]
[1756560073639,0.191,4353.6,4353.5,3.6835]
[1756560073839,0.191,4353.6,4353.5,3.4478]
[1756560073840,0.4827,4353.6,4353.5,3.4478]
[1756560074241,0.191,4353.6,4352.7,3.4931]
[1756560074438,0.4827,4352.8,4352.7,3.6835]
[1756560074638,0.4827,4352.8,4352.7,3.9235]
[1756560075346,0.4827,4352.8,4352.7,3.6835]
[1756560075549,0.4827,4352.8,4352.7,3.4478]
[1756560075744,0.4827,4352.8,4352.7,3.6382]
[1756560076144,0.4827,4352.8,4352.7,0.4304]
[1756560076348,0.4827,4352.8,4352.7,0.7157]
[1756560076843,0.4827,4352.8,4352.7,0.24]
[1756560078350,0.4827,4352.8,4352.2,3.2078]
[1756560078351,0.4827,4352.3,4352.2,3.2078]
[1756560080952,0.4827,4352.3,4351.9,0.2853]
[1756560082055,0.4827,4351.8,4351.7,3.3982]
[1756560082355,0.4827,4351.8,4351.7,3.9235]
[1756560083955,0.2917,4352.7,4351.8,0.2853]
[1756560084255,0.52147,4352.7,4351.8,0.2853]
[1756560084552,3.2078,4352.8,4351.8,0.2853]
[1756560084553,0.2917,4352.5,4351.8,0.2853]
[1756560085259,0.4827,4351.9,4351.8,0.4757]
[1756560085457,0.191,4351.9,4351.6,0.24]
[1756560085654,0.4827,4351.5,4351.4,0.5253]
[1756560086252,0.4827,4351.5,4351.4,0.24]
[1756560086457,0.4827,4351.5,4351.4,0.4304]
[1756560086660,0.4827,4351.5,4351.4,0.1904]
[1756560086855,0.4827,4351.5,4351.2,0.24]
[1756560087056,0.191,4351.3,4351.2,0.7157]
[1756560087255,0.4827,4351.3,4351.2,0.7157]
[1756560087955,3.2078,4352.0,4351.0,3.3982]
[1756560087956,0.4827,4351.1,4351.0,3.3982]
[1756560088150,0.2917,4351.8,4351.1,0.2853]
[1756560088755,0.2917,4351.8,4351.0,3.2078]
[1756560088756,0.4827,4351.8,4351.7,0.4757]
[1756560088960,0.4827,4351.8,4351.2,0.24]
[1756560089160,3.2078,4352.0,4351.0,3.3982]
[1756560089161,0.4827,4351.1,4351.0,3.3982]
[1756560089349,0.52151,4351.9,4351.0,3.6382]
[1756560089553,0.4827,4351.2,4351.1,0.1904]
[1756560089749,3.2078,4352.0,4351.0,3.2078]
[1756560089750,0.4827,4351.1,4351.0,3.2078]
[1756560089958,0.4827,4351.1,4351.0,3.3982]
[1756560090352,0.4827,4351.1,4351.0,3.6835]
[1756560090560,0.4827,4351.9,4351.8,0.1904]
[1756560090859,0.4827,4351.9,4351.8,0.4757]
[1756560091259,0.4827,4351.9,4351.8,0.1904]
[1756560093956,0.4827,4351.9,4351.8,0.4757]
[1756560094154,0.4827,4351.9,4351.0,3.2078]
[1756560094353,0.18146619,4353.1,4349.4,3.2078]
[1756560094354,0.191,4350.0,4349.4,3.2078]
[1756560094555,0.2917,4349.5,4349.2,0.2853]
[1756560094759,0.4827,4349.3,4349.2,0.4757]
[1756560095066,0.4827,4349.3,4348.4,3.2078]
[1756560095067,0.4827,4349.3,4348.7,0.2853]
[1756560096361,3.2078,4348.8,4348.3,0.2853]
[1756560096662,0.4827,4348.8,4348.7,0.4757]
[1756560097058,0.2059,4348.4,4348.3,0.2853]
[1756560097359,0.4889,4348.4,4348.3,0.2853]
[1756560097867,0.4889,4348.4,4348.0,0.239]
[1756560097868,0.283,4348.3,4348.0,0.3064]
[1756560098064,0.4889,4348.1,4348.0,0.4956]
[1756560098256,0.4889,4348.1,4348.0,0.3064]
[1756560098457,0.283,4348.8,4348.0,0.3064]
[1756560098656,0.4889,4348.8,4348.7,0.4956]
[1756560098862,0.24,4348.9,4348.8,0.4956]
[1756560099366,0.24,4349.4,4348.9,0.3064]
[1756560099562,0.283,4348.9,4347.9,0.3064]
[1756560099758,0.523,4348.9,4347.9,0.3064]
[1756560100265,0.283,4348.9,4347.9,0.3064]
[1756560101063,0.4889,4348.9,4348.8,0.1892]
[1756560101268,0.2059,4348.9,4348.8,0.4956]
[1756560101772,0.4889,4348.9,4348.8,0.4956]
[1756560101970,3.2078,4349.0,4348.8,0.1892]
[1756560102270,3.6967,4349.0,4348.4,0.3064]
[1756560103166,3.6967,4349.0,4348.0,0.24]
[1756560103472,3.2078,4349.0,4348.0,0.5464]
[1756560103670,0.283,4348.9,4348.1,0.3064]
[1756560103969,0.4889,4348.2,4348.1,0.4956]
[1756560104371,0.4889,4348.2,4348.1,0.1892]
[1756560104569,0.4889,4348.2,4347.8,3.5142]
[1756560104770,0.4889,4347.9,4347.8,3.2078]
[1756560105172,0.4889,4347.9,4347.8,3.397]
[1756560105367,0.4889,4347.9,4347.8,3.7034]
[1756560106069,0.4889,4347.9,4347.8,3.2078]
[1756560106267,0.4889,4347.5,4347.4,0.4956]
[1756560106665,0.4889,4347.8,4347.7,0.1892]
[1756560106862,0.283,4348.3,4347.7,0.1892]
[1756560107067,0.4889,4348.3,4348.2,0.1892]
[1756560107576,0.2059,4348.3,4347.3,3.4478]
[1756560107780,0.283,4348.2,4347.4,0.3064]
[1756560108077,0.4889,4348.2,4348.1,0.4956]
[1756560109072,0.4889,4348.2,4348.1,0.1892]
[1756560109270,0.4889,4348.2,4348.1,0.4956]
[1756560110173,0.4889,4348.2,4347.6,0.3064]
[1756560111178,0.4889,4348.2,4348.1,0.4956]
[1756560111367,1.05326319,4348.2,4348.1,0.4956]
[1756560112174,1.05326319,4348.2,4347.7,0.3064]
[1756560112376,0.2059,4347.5,4347.4,0.4292]
[1756560112581,0.4889,4347.5,4347.4,0.7356]
[1756560113074,0.2059,4347.5,4347.4,0.7356]
[1756560113675,0.283,4348.3,4347.5,0.3064]
[1756560113875,1.0536209,4348.2,4348.1,0.4956]
[1756560115288,0.5647209,4348.2,4348.1,0.4956]
[1756560115488,3.6967,4349.0,4348.9,0.1892]
[1756560115680,4.26199813,4349.0,4348.9,0.0745]
[1756560115990,4.26199813,4349.0,4348.6,0.2848]
[1756560115991,3.97899813,4349.0,4348.6,0.2848]
[1756560116183,0.4889,4348.7,4348.6,0.474]
[1756560116385,1.05419813,4348.7,4348.6,0.474]
[1756560118287,0.56529813,4348.7,4348.6,0.474]
[1756560118584,0.4889,4349.3,4349.2,0.1892]
[1756560118787,1.05530454,4349.3,4349.2,0.1892]
[1756560119189,0.77230454,4349.3,4348.9,0.2848]
[1756560119384,0.4889,4349.0,4348.9,0.474]
[1756560119683,0.4889,4348.5,4348.4,0.474]
[1756560120091,1.05596337,4348.5,4348.4,0.474]
[1756560120779,0.2059,4348.1,4347.5,0.2848]
[1756560120983,0.4889,4347.6,4347.5,0.474]
[1756560121184,0.4889,4347.6,4347.4,3.2078]
[1756560121384,0.2059,4347.0,4346.9,3.2078]
[1756560121587,1.05601503,4347.0,4346.9,3.2078]
[1756560122790,1.05601503,4347.0,4346.3,0.239]
[1756560122988,0.2059,4346.4,4346.3,0.1892]
[1756560123190,0.4889,4346.3,4346.2,3.2078]
[1756560123391,0.4889,4346.3,4346.2,3.9208]
[1756560123392,0.56711503,4346.3,4346.2,3.9208]
[1756560123591,0.283,4346.8,4346.7,0.1892]
[1756560123787,0.8510591,4346.8,4346.7,0.474]
[1756560123982,0.5680591,4346.8,4346.7,0.474]
[1756560124387,0.8510591,4346.8,4346.7,0.474]
[1756560124588,1.0569591,4346.8,4346.7,0.474]
[1756560126298,0.5680591,4346.8,4346.7,0.474]
[1756560126485,0.5680591,4346.8,4346.7,4.474]
[1756560126692,3.2078,4347.1,4346.7,4.94306]
[1756560126891,3.2078,4347.1,4346.8,0.23005]
[1756560127396,0.283,4347.8,4347.0,3.2078]
[1756560127794,0.4889,4347.8,4347.0,3.2078]
[1756560127998,0.2839,4347.7,4347.1,0.239]
[1756560128299,0.2839,4347.6,4347.2,0.239]
[1756560128596,0.2839,4348.0,4347.3,0.239]
[1756560129699,0.485,4347.4,4347.3,0.239]
[1756560130700,0.485,4347.4,4347.0,3.2078]
[1756560130901,1.21150129,4348.2,4347.1,0.239]
[1756560131103,0.2839,4348.1,4347.1,0.239]
[1756560131994,0.485,4347.1,4347.0,3.2078]
[1756560132395,0.485,4347.0,4346.9,3.2078]
[1756560132601,0.485,4347.0,4346.9,3.4468]
[1756560132799,3.2078,4347.7,4346.2,3.2078]
[1756560132995,0.2011,4346.8,4346.7,0.239]
[1756560133192,0.485,4346.8,4346.2,3.2078]
[1756560133397,3.2078,4347.1,4346.2,3.2078]
[1756560133603,0.485,4346.4,4346.3,0.239]
[1756560134698,0.485,4346.4,4346.2,3.2078]
[1756560134898,0.485,4346.4,4346.3,0.239]
[1756560135200,0.485,4346.4,4346.2,3.2078]
[1756560135406,3.2078,4347.6,4346.3,0.239]
[1756560135611,0.2839,4347.5,4346.3,0.239]
[1756560135803,3.2078,4347.1,4346.3,0.239]
[1756560135995,0.485,4346.3,4346.2,3.2078]
[1756560136199,0.485,4346.3,4346.2,3.4468]
[1756560137109,0.485,4346.3,4346.2,3.2078]
[1756560137702,0.485,4346.3,4346.1,0.239]
[1756560138412,0.2011,4345.6,4345.5,3.2078]
[1756560138603,0.485,4345.6,4345.5,3.4468]
[1756560139303,0.2839,4345.6,4345.5,3.4468]
[1756560139505,0.2839,4346.3,4345.5,3.4468]
[1756560139808,3.2078,4346.4,4345.5,3.4468]
[1756560140212,0.485,4345.6,4345.5,3.2078]
[1756560140408,0.485,4345.6,4345.5,3.4468]
[1756560140814,0.485,4346.2,4345.5,3.4468]
[1756560142413,0.485,4346.6,4345.6,0.2301]
[1756560142617,3.2078,4347.0,4345.5,3.4468]
[1756560142618,0.2839,4346.5,4345.5,3.2078]
[1756560142917,0.2839,4346.9,4345.6,0.239]
[1756560143119,0.2839,4346.9,4345.6,0.46908]
[1756560143418,0.2839,4346.8,4345.6,41.039]
[1756560143911,0.2839,4346.7,4345.6,40.8]
[1756560144122,0.2839,4346.9,4345.7,0.239]
[1756560144516,3.2078,4347.0,4346.0,3.2078]
[1756560144814,0.2839,4346.9,4346.1,0.239]
[1756560145818,0.2839,4346.9,4346.2,0.23007]
[1756560146113,3.2078,4347.7,4346.5,3.2078]
[1756560146318,0.2839,4347.6,4346.6,0.239]
[1756560146513,0.2839,4347.6,4346.6,0.46903999]
[1756560146715,0.2839,4347.6,4346.6,0.239]
[1756560146913,3.2078,4347.7,4346.5,3.2078]
[1756560147214,0.485,4346.6,4346.5,3.2078]
[1756560147420,0.2839,4346.4,4345.9,3.2078]
[1756560147718,0.485,4346.0,4345.9,3.2078]
[1756560147918,0.485,4346.0,4345.9,3.4468]
[1756560149319,0.2839,4346.8,4345.9,3.4468]
[1756560149614,0.2839,4347.0,4345.9,3.4468]
[1756560149819,3.2078,4347.1,4345.9,3.2078]
[1756560149820,0.485,4346.0,4345.9,3.2078]
[1756560150017,0.485,4346.0,4345.9,3.4468]
[1756560150318,0.2839,4347.0,4345.9,3.4468]
[1756560150508,0.2839,4346.8,4345.9,3.4468]
[1756560150710,0.2839,4347.0,4345.9,3.4468]
[1756560150911,0.56935391,4346.9,4345.9,3.4468]